[Event "Early-Titled-Tuesday-Blitz-September-12-2023"]
[Site "Chess.com"]
[Date "2023.09.12"]
[Round "6"]
[White "Irishchessman16"]
[Black "lluiss"]
[Result "1-0"]
[WhiteElo "2491"]
[BlackElo "2184"]
[TimeControl "180+1"]
[EndTime "9:05:27 PDT"]
[Termination "Irishchessman16 won by resignation"]

1. d4 {[%clk 0:02:55.6]} 1... Nf6 {[%clk 0:02:59.2]} 2. Nc3 {[%clk 0:02:55.3]}
2... d5 {[%clk 0:02:58.5]} 3. Bf4 {[%clk 0:02:55.9]} 3... g6 {[%clk 0:02:58.6]}
4. e3 {[%clk 0:02:54.4]} 4... Bg7 {[%clk 0:02:58.3]} 5. Nb5 {[%clk 0:02:51.1]}
5... Na6 {[%clk 0:02:54.1]} 6. h3 {[%clk 0:02:34.9]} 6... O-O {[%clk 0:02:53.3]}
7. Nf3 {[%clk 0:02:35]} 7... Ne4 {[%clk 0:02:45.3]} 8. Bd3 {[%clk 0:02:33.7]}
8... Nd6 {[%clk 0:02:45.2]} 9. Nxd6 {[%clk 0:02:32.6]} 9... exd6 {[%clk
0:02:42.7]} 10. c3 {[%clk 0:02:24.6]} 10... Nb8 {[%clk 0:02:42.1]} 11. O-O
{[%clk 0:02:22.1]} 11... Nd7 {[%clk 0:02:41.3]} 12. c4 {[%clk 0:02:19.3]} 12...
Nf6 {[%clk 0:02:34.8]} 13. Rc1 {[%clk 0:02:14]} 13... c6 {[%clk 0:02:03.1]} 14.
Nd2 {[%clk 0:02:12]} 14... Be6 {[%clk 0:01:59.1]} 15. Bh2 {[%clk 0:02:08.2]}
15... Qd7 {[%clk 0:01:52.1]} 16. cxd5 {[%clk 0:02:05.9]} 16... Bxd5 {[%clk
0:01:47.1]} 17. b3 {[%clk 0:01:42.8]} 17... Rfe8 {[%clk 0:01:44]} 18. Nc4 {[%clk
0:01:42.4]} 18... Bxc4 {[%clk 0:01:42.9]} 19. bxc4 {[%clk 0:01:42.3]} 19... c5
{[%clk 0:01:11.2]} 20. Be2 {[%clk 0:01:30.7]} 20... Rad8 {[%clk 0:01:02.5]} 21.
Bf3 {[%clk 0:01:28.1]} 21... b6 {[%clk 0:01:02.7]} 22. Qd3 {[%clk 0:01:15]}
22... Qe7 {[%clk 0:00:51]} 23. Rfd1 {[%clk 0:01:11.6]} 23... Nd7 {[%clk
0:00:45.4]} 24. Bc6 {[%clk 0:01:10.5]} 24... cxd4 {[%clk 0:00:37.5]} 25. exd4
{[%clk 0:01:09.7]} 25... Rc8 {[%clk 0:00:31.2]} 26. Bb5 {[%clk 0:01:03.8]} 26...
Red8 {[%clk 0:00:29.2]} 27. Re1 {[%clk 0:01:02.5]} 27... Qf6 {[%clk 0:00:28.5]}
28. Rcd1 {[%clk 0:00:54.4]} 28... Nb8 {[%clk 0:00:28.4]} 29. Qa3 {[%clk
0:00:51.1]} 29... Nc6 {[%clk 0:00:17.7]} 30. Bxc6 {[%clk 0:00:39.9]} 30... Rxc6
{[%clk 0:00:17.4]} 31. Qxa7 {[%clk 0:00:40.2]} 31... Rxc4 {[%clk 0:00:17.6]} 32.
Qxb6 {[%clk 0:00:40.1]} 32... Rxd4 {[%clk 0:00:15.4]} 33. Rxd4 {[%clk
0:00:38.8]} 33... Qxd4 {[%clk 0:00:14.6]} 34. Qxd8+ {[%clk 0:00:38.5]} 1-0

[Event "Early-Titled-Tuesday-Blitz-September-12-2023"]
[Site "Chess.com"]
[Date "2023.09.12"]
[Round "6"]
[White "play1ngtheangel"]
[Black "DanyKopy"]
[Result "0-1"]
[WhiteElo "2648"]
[BlackElo "2525"]
[TimeControl "180+1"]
[EndTime "9:05:31 PDT"]
[Termination "DanyKopy won by resignation"]

1. e4 {[%clk 0:03:00.9]} 1... c5 {[%clk 0:02:59.1]} 2. Nf3 {[%clk 0:03:01.5]}
2... Nc6 {[%clk 0:02:59.1]} 3. d4 {[%clk 0:03:02.1]} 3... cxd4 {[%clk
0:02:59.7]} 4. Nxd4 {[%clk 0:03:03]} 4... e5 {[%clk 0:02:59.9]} 5. Nb5 {[%clk
0:03:03]} 5... d6 {[%clk 0:03:00.5]} 6. N1c3 {[%clk 0:03:03.8]} 6... a6 {[%clk
0:02:59.7]} 7. Na3 {[%clk 0:03:04]} 7... Be6 {[%clk 0:03:00]} 8. Nd5 {[%clk
0:03:03.1]} 8... Bxd5 {[%clk 0:02:58.8]} 9. exd5 {[%clk 0:03:03.4]} 9... Nce7
{[%clk 0:02:57.6]} 10. c4 {[%clk 0:03:01.4]} 10... f5 {[%clk 0:02:53.2]} 11. Bd3
{[%clk 0:02:59.6]} 11... Nf6 {[%clk 0:02:52.4]} 12. O-O {[%clk 0:02:58.4]} 12...
g6 {[%clk 0:02:52.2]} 13. Re1 {[%clk 0:02:51.3]} 13... Bg7 {[%clk 0:02:51.8]}
14. c5 {[%clk 0:02:51.9]} 14... Nexd5 {[%clk 0:02:44.4]} 15. cxd6 {[%clk
0:02:51.5]} 15... e4 {[%clk 0:02:35.4]} 16. Bc4 {[%clk 0:02:50.8]} 16... Qxd6
{[%clk 0:02:35.2]} 17. Bf4 {[%clk 0:02:50.5]} 17... Qxf4 {[%clk 0:02:30.3]} 18.
Bxd5 {[%clk 0:02:51.1]} 18... Rd8 {[%clk 0:02:27.9]} 19. Qa4+ {[%clk 0:02:51.4]}
19... Rd7 {[%clk 0:02:16.4]} 20. Be6 {[%clk 0:02:33.2]} 20... b5 {[%clk
0:01:48.2]} 21. Qxa6 {[%clk 0:02:23.9]} 21... Rd6 {[%clk 0:01:39]} 22. Qxb5+
{[%clk 0:02:23.4]} 22... Ke7 {[%clk 0:01:38.8]} 23. Bb3 {[%clk 0:02:22.2]} 23...
Ng4 {[%clk 0:01:36.5]} 24. Qb7+ {[%clk 0:02:12.8]} 24... Rd7 {[%clk 0:01:26.9]}
25. Qb4+ {[%clk 0:02:12.8]} 25... Kf6 {[%clk 0:01:25.7]} 26. Rad1 {[%clk
0:01:47]} 26... Rhd8 {[%clk 0:00:57.5]} 27. h3 {[%clk 0:01:33.7]} 27... Qxf2+
{[%clk 0:00:51.5]} 28. Kh1 {[%clk 0:01:34]} 28... Rxd1 {[%clk 0:00:47.6]} 29.
Bxd1 {[%clk 0:01:34.6]} 29... Rd2 {[%clk 0:00:34.2]} 30. Qc3+ {[%clk 0:00:45.1]}
30... Kg5 {[%clk 0:00:32.6]} 0-1

[Event "Early-Titled-Tuesday-Blitz-September-12-2023"]
[Site "Chess.com"]
[Date "2023.09.12"]
[Round "6"]
[White "VSanduleac"]
[Black "Mikasinski"]
[Result "1-0"]
[WhiteElo "2546"]
[BlackElo "2665"]
[TimeControl "180+1"]
[EndTime "9:05:33 PDT"]
[Termination "VSanduleac won by resignation"]

1. e4 {[%clk 0:03:00.9]} 1... c5 {[%clk 0:02:59.3]} 2. Nf3 {[%clk 0:03:00.8]}
2... d6 {[%clk 0:02:53.7]} 3. Bb5+ {[%clk 0:02:59.6]} 3... Bd7 {[%clk
0:02:42.9]} 4. Bxd7+ {[%clk 0:02:58.4]} 4... Qxd7 {[%clk 0:02:43.8]} 5. O-O
{[%clk 0:02:58.2]} 5... Nc6 {[%clk 0:02:24.9]} 6. c3 {[%clk 0:02:57]} 6... Nf6
{[%clk 0:02:24.2]} 7. Qe2 {[%clk 0:02:56.6]} 7... e6 {[%clk 0:02:23.9]} 8. d4
{[%clk 0:02:55.8]} 8... cxd4 {[%clk 0:02:24.7]} 9. cxd4 {[%clk 0:02:55.9]} 9...
d5 {[%clk 0:02:25.4]} 10. e5 {[%clk 0:02:56.1]} 10... Ne4 {[%clk 0:02:25.7]} 11.
Rd1 {[%clk 0:02:56.5]} 11... Be7 {[%clk 0:02:24]} 12. Be3 {[%clk 0:02:57.1]}
12... f6 {[%clk 0:02:24]} 13. exf6 {[%clk 0:02:54.9]} 13... gxf6 {[%clk
0:02:23.3]} 14. Nbd2 {[%clk 0:02:54.7]} 14... Nxd2 {[%clk 0:02:23.6]} 15. Qxd2
{[%clk 0:02:52.7]} 15... O-O {[%clk 0:02:22.5]} 16. a3 {[%clk 0:02:51.7]} 16...
Kh8 {[%clk 0:02:20.7]} 17. Rac1 {[%clk 0:02:50.6]} 17... a6 {[%clk 0:02:17.2]}
18. Bf4 {[%clk 0:02:45.1]} 18... Rg8 {[%clk 0:02:16.5]} 19. Qe3 {[%clk
0:02:43.1]} 19... Rae8 {[%clk 0:02:07.2]} 20. b4 {[%clk 0:02:34.5]} 20... Bd6
{[%clk 0:02:05.9]} 21. Bxd6 {[%clk 0:02:33.6]} 21... Qxd6 {[%clk 0:02:06.6]} 22.
g3 {[%clk 0:02:31.3]} 22... Rg4 {[%clk 0:02:05]} 23. Qh6 {[%clk 0:02:24.5]}
23... Qf8 {[%clk 0:02:03.1]} 24. Qxf8+ {[%clk 0:02:21.1]} 24... Rxf8 {[%clk
0:02:04]} 25. Rc3 {[%clk 0:02:20.4]} 25... Kg7 {[%clk 0:01:50.7]} 26. Kg2 {[%clk
0:02:13.5]} 26... Rd8 {[%clk 0:01:47.5]} 27. h3 {[%clk 0:02:12.6]} 27... Re4
{[%clk 0:01:46.2]} 28. Rd2 {[%clk 0:02:10.8]} 28... e5 {[%clk 0:01:43.7]} 29.
dxe5 {[%clk 0:02:09.9]} 29... fxe5 {[%clk 0:01:43.4]} 30. Ng5 {[%clk 0:02:05.9]}
30... Rd4 {[%clk 0:01:31.6]} 31. Ne6+ {[%clk 0:02:04.1]} 31... Kf6 {[%clk
0:01:31.5]} 32. Nxd4 {[%clk 0:02:03.7]} 32... exd4 {[%clk 0:01:29.2]} 33. Rf3+
{[%clk 0:02:02.3]} 33... Ke6 {[%clk 0:01:29]} 34. Re2+ {[%clk 0:02:00.5]} 34...
Kd6 {[%clk 0:01:28.8]} 35. Rf6+ {[%clk 0:02:00.3]} 35... Kc7 {[%clk 0:01:27.9]}
36. Rf7+ {[%clk 0:02:00.3]} 36... Kb6 {[%clk 0:01:27.5]} 37. Rxh7 {[%clk
0:01:58.9]} 37... a5 {[%clk 0:01:23.3]} 38. bxa5+ {[%clk 0:01:57.6]} 38... Nxa5
{[%clk 0:01:23.3]} 39. Rb2+ {[%clk 0:01:54.6]} 39... Ka6 {[%clk 0:01:21.6]} 40.
Rh6+ {[%clk 0:01:50]} 40... Ka7 {[%clk 0:01:21.4]} 41. h4 {[%clk 0:01:47.2]}
41... Re8 {[%clk 0:01:18.3]} 42. h5 {[%clk 0:01:45.6]} 42... Nc4 {[%clk
0:01:16.7]} 43. Rb5 {[%clk 0:01:38.8]} 43... Re2 {[%clk 0:01:13.4]} 44. Rxd5
{[%clk 0:01:37.7]} 44... Rd2 {[%clk 0:01:11.2]} 45. Rd7 {[%clk 0:01:33.1]} 45...
d3 {[%clk 0:01:07.1]} 46. Rhh7 {[%clk 0:01:32.2]} 46... Rd1 {[%clk 0:01:01.7]}
47. Rxb7+ {[%clk 0:01:30.7]} 47... Ka6 {[%clk 0:01:02.1]} 48. Rbd7 {[%clk
0:01:29.7]} 48... d2 {[%clk 0:01:01.9]} 49. h6 {[%clk 0:01:28]} 49... Rb1 {[%clk
0:00:57.9]} 50. Rhg7 {[%clk 0:01:23.9]} 50... Rb8 {[%clk 0:00:51.7]} 51. h7
{[%clk 0:01:22.5]} 51... Rh8 {[%clk 0:00:50]} 52. Rg6+ {[%clk 0:01:22.1]} 52...
Kb5 {[%clk 0:00:50]} 53. Rgg7 {[%clk 0:01:16.6]} 53... Ka4 {[%clk 0:00:48.3]}
54. g4 {[%clk 0:01:13.9]} 54... Kb3 {[%clk 0:00:43.4]} 55. g5 {[%clk 0:01:13.7]}
55... Kc2 {[%clk 0:00:43.1]} 56. g6 {[%clk 0:01:13.5]} 56... d1=Q {[%clk
0:00:41.5]} 57. Rxd1 {[%clk 0:01:13.1]} 57... Kxd1 {[%clk 0:00:42.4]} 58. Rg8
{[%clk 0:01:13.1]} 1-0

[Event "Early-Titled-Tuesday-Blitz-September-12-2023"]
[Site "Chess.com"]
[Date "2023.09.12"]
[Round "6"]
[White "tylityli"]
[Black "taleslascando"]
[Result "1-0"]
[WhiteElo "2303"]
[BlackElo "1938"]
[TimeControl "180+1"]
[EndTime "9:05:35 PDT"]
[Termination "tylityli won on time"]

1. d4 {[%clk 0:03:00.9]} 1... Nf6 {[%clk 0:02:59.6]} 2. c4 {[%clk 0:03:00.8]}
2... e6 {[%clk 0:02:59.1]} 3. Nc3 {[%clk 0:02:51.1]} 3... Bb4 {[%clk 0:02:45]}
4. e3 {[%clk 0:02:50.7]} 4... d5 {[%clk 0:02:44.2]} 5. Ne2 {[%clk 0:02:51.6]}
5... O-O {[%clk 0:02:38.7]} 6. a3 {[%clk 0:02:51.8]} 6... Be7 {[%clk 0:02:34.7]}
7. cxd5 {[%clk 0:02:50.5]} 7... exd5 {[%clk 0:02:32.3]} 8. g3 {[%clk 0:02:51.4]}
8... Bg4 {[%clk 0:02:27.3]} 9. Bg2 {[%clk 0:02:49.8]} 9... c6 {[%clk 0:02:27.5]}
10. O-O {[%clk 0:02:49.2]} 10... a5 {[%clk 0:02:27.7]} 11. f3 {[%clk 0:02:49.5]}
11... Bh5 {[%clk 0:02:24.8]} 12. e4 {[%clk 0:02:49.8]} 12... dxe4 {[%clk
0:02:20]} 13. fxe4 {[%clk 0:02:50.7]} 13... Na6 {[%clk 0:02:07.7]} 14. e5 {[%clk
0:02:49.9]} 14... Nd5 {[%clk 0:02:03.3]} 15. Nxd5 {[%clk 0:02:47.9]} 15... cxd5
{[%clk 0:02:03.6]} 16. Qd2 {[%clk 0:02:33.6]} 16... Nc7 {[%clk 0:01:50.3]} 17.
Nf4 {[%clk 0:02:32.8]} 17... Bg4 {[%clk 0:01:49.5]} 18. h3 {[%clk 0:02:31.3]}
18... Be6 {[%clk 0:01:42.6]} 19. Qd3 {[%clk 0:02:29.4]} 19... Rc8 {[%clk
0:01:18]} 20. Be3 {[%clk 0:02:28.5]} 20... Qd7 {[%clk 0:00:56.4]} 21. g4 {[%clk
0:02:13.8]} 21... Rfd8 {[%clk 0:00:38.3]} 22. Rac1 {[%clk 0:02:06.5]} 22... Qb5
{[%clk 0:00:29.5]} 23. Qxb5 {[%clk 0:02:00.9]} 23... Nxb5 {[%clk 0:00:29.1]} 24.
Kf2 {[%clk 0:01:57.6]} 24... Nc7 {[%clk 0:00:19.5]} 25. Bf3 {[%clk 0:01:54.7]}
25... f6 {[%clk 0:00:18.3]} 26. Nd3 {[%clk 0:01:54.3]} 26... fxe5 {[%clk
0:00:16]} 27. Nxe5 {[%clk 0:01:55.2]} 27... Bf6 {[%clk 0:00:15.2]} 28. Bf4
{[%clk 0:01:51.9]} 28... h6 {[%clk 0:00:14.3]} 29. Bg3 {[%clk 0:01:50.8]} 29...
Ne8 {[%clk 0:00:13.9]} 30. Ke2 {[%clk 0:01:44.9]} 30... Bg5 {[%clk 0:00:13.7]}
31. Rxc8 {[%clk 0:01:42.4]} 31... Rxc8 {[%clk 0:00:14.6]} 32. Kd3 {[%clk
0:01:42.7]} 32... Nd6 {[%clk 0:00:12.2]} 33. h4 {[%clk 0:01:33.6]} 33... Bf6
{[%clk 0:00:11.2]} 34. Bf4 {[%clk 0:01:21.9]} 34... Nc4 {[%clk 0:00:09.2]} 35.
Nxc4 {[%clk 0:01:19.4]} 35... dxc4+ {[%clk 0:00:09.4]} 36. Kc3 {[%clk
0:01:19.3]} 36... Rd8 {[%clk 0:00:07.4]} 37. Rd1 {[%clk 0:01:13.5]} 37... b5
{[%clk 0:00:07]} 38. Be5 {[%clk 0:01:10.8]} 38... Bxe5 {[%clk 0:00:05.9]} 39.
dxe5 {[%clk 0:01:11.7]} 39... Rxd1 {[%clk 0:00:05.8]} 40. Bxd1 {[%clk
0:01:12.5]} 40... Kf7 {[%clk 0:00:05.4]} 41. Kd4 {[%clk 0:01:12.7]} 41... b4
{[%clk 0:00:04.1]} 42. axb4 {[%clk 0:01:12]} 42... axb4 {[%clk 0:00:04.3]} 43.
Be2 {[%clk 0:01:12.4]} 1-0

[Event "Early-Titled-Tuesday-Blitz-September-12-2023"]
[Site "Chess.com"]
[Date "2023.09.12"]
[Round "6"]
[White "jcmesafischer"]
[Black "kidagent"]
[Result "1-0"]
[WhiteElo "2386"]
[BlackElo "2199"]
[TimeControl "180+1"]
[EndTime "9:05:35 PDT"]
[Termination "jcmesafischer won on time"]

1. Nf3 {[%clk 0:03:00.9]} 1... Nf6 {[%clk 0:02:59.5]} 2. c4 {[%clk 0:02:56.4]}
2... c6 {[%clk 0:02:59.4]} 3. d4 {[%clk 0:02:55.9]} 3... d5 {[%clk 0:02:59.9]}
4. Nc3 {[%clk 0:02:55.7]} 4... e6 {[%clk 0:03:00.3]} 5. Bg5 {[%clk 0:02:55.2]}
5... h6 {[%clk 0:02:59]} 6. Bh4 {[%clk 0:02:54]} 6... dxc4 {[%clk 0:02:59.2]} 7.
e4 {[%clk 0:02:51.5]} 7... g5 {[%clk 0:02:58.6]} 8. Bg3 {[%clk 0:02:47.8]} 8...
b5 {[%clk 0:02:58.9]} 9. h4 {[%clk 0:02:38.7]} 9... g4 {[%clk 0:02:57.3]} 10.
Ne5 {[%clk 0:02:37.7]} 10... Nbd7 {[%clk 0:02:56.9]} 11. Nxg4 {[%clk 0:02:35.1]}
11... Bb4 {[%clk 0:02:48.4]} 12. Nxf6+ {[%clk 0:02:32.5]} 12... Nxf6 {[%clk
0:02:45.7]} 13. Be5 {[%clk 0:02:32.4]} 13... Rg8 {[%clk 0:02:38.3]} 14. f3
{[%clk 0:02:18.1]} 14... Nh5 {[%clk 0:02:22.2]} 15. g4 {[%clk 0:02:08.4]} 15...
f6 {[%clk 0:02:20.1]} 16. Bh2 {[%clk 0:02:03.7]} 16... Ng7 {[%clk 0:02:03.4]}
17. Qd2 {[%clk 0:01:53.8]} 17... f5 {[%clk 0:01:58.5]} 18. O-O-O {[%clk
0:01:46.9]} 18... fxg4 {[%clk 0:01:51.2]} 19. fxg4 {[%clk 0:01:44.3]} 19... Qxh4
{[%clk 0:01:49.6]} 20. Bd6 {[%clk 0:01:22.5]} 20... Qxh1 {[%clk 0:01:38.3]} 21.
Bxb4 {[%clk 0:01:17.9]} 21... Qh4 {[%clk 0:01:32.4]} 22. Kb1 {[%clk 0:00:48.1]}
22... Bd7 {[%clk 0:01:28.4]} 23. d5 {[%clk 0:00:47.8]} 23... O-O-O {[%clk
0:01:19.5]} 24. Qd4 {[%clk 0:00:33.5]} 24... Kb7 {[%clk 0:01:07.7]} 25. Bc5
{[%clk 0:00:29.3]} 25... exd5 {[%clk 0:01:05.9]} 26. Bxa7 {[%clk 0:00:28.3]}
26... Qxg4 {[%clk 0:00:38.1]} 27. Qb6+ {[%clk 0:00:27.6]} 27... Ka8 {[%clk
0:00:37.5]} 28. Bb8 {[%clk 0:00:28.1]} 1-0

[Event "Early-Titled-Tuesday-Blitz-September-12-2023"]
[Site "Chess.com"]
[Date "2023.09.12"]
[Round "6"]
[White "Rosh1610"]
[Black "JaloliddinIlkhomi"]
[Result "0-1"]
[WhiteElo "2434"]
[BlackElo "2615"]
[TimeControl "180+1"]
[EndTime "9:05:37 PDT"]
[Termination "JaloliddinIlkhomi won by resignation"]

1. e4 {[%clk 0:02:53.4]} 1... e6 {[%clk 0:02:58.2]} 2. d4 {[%clk 0:02:47.3]}
2... d5 {[%clk 0:02:57.8]} 3. Nc3 {[%clk 0:02:47.5]} 3... Bb4 {[%clk 0:02:56.8]}
4. exd5 {[%clk 0:02:47.2]} 4... exd5 {[%clk 0:02:57.7]} 5. Bd3 {[%clk
0:02:47.1]} 5... Nc6 {[%clk 0:02:56.9]} 6. Ne2 {[%clk 0:02:46.2]} 6... Nge7
{[%clk 0:02:56.6]} 7. O-O {[%clk 0:02:46.4]} 7... O-O {[%clk 0:02:55.2]} 8. Bg5
{[%clk 0:02:46.7]} 8... f6 {[%clk 0:02:54.9]} 9. Bf4 {[%clk 0:02:46.7]} 9... Bf5
{[%clk 0:02:54.5]} 10. f3 {[%clk 0:02:46.5]} 10... Qd7 {[%clk 0:02:54.4]} 11.
Qd2 {[%clk 0:02:46.1]} 11... Rae8 {[%clk 0:02:54.6]} 12. Rae1 {[%clk 0:02:45.4]}
12... Bd6 {[%clk 0:02:55]} 13. Kh1 {[%clk 0:02:36]} 13... Bxf4 {[%clk
0:02:53.3]} 14. Bxf5 {[%clk 0:02:04]} 14... Bxd2 {[%clk 0:02:14.9]} 15. Bxd7
{[%clk 0:02:02.7]} 15... Bxe1 {[%clk 0:02:15.3]} 16. Bxe8 {[%clk 0:02:02]} 16...
Rxe8 {[%clk 0:02:04.5]} 17. Rxe1 {[%clk 0:01:59.6]} 17... Nf5 {[%clk 0:02:05.1]}
18. Rd1 {[%clk 0:01:55.5]} 18... Ne3 {[%clk 0:02:02.4]} 19. Rd2 {[%clk
0:01:54.9]} 19... Nc4 {[%clk 0:01:46.1]} 20. Rd1 {[%clk 0:01:50.5]} 20... Nxb2
{[%clk 0:01:46]} 21. Rb1 {[%clk 0:01:50.9]} 21... Nc4 {[%clk 0:01:46]} 22. h3
{[%clk 0:01:43.6]} 22... b6 {[%clk 0:01:24.2]} 23. Kg1 {[%clk 0:01:41.9]} 23...
Ne3 {[%clk 0:01:20]} 24. Rc1 {[%clk 0:01:27.2]} 24... Nb4 {[%clk 0:01:11]} 25.
Nb5 {[%clk 0:01:23.5]} 25... c6 {[%clk 0:01:05.3]} 26. Nxa7 {[%clk 0:01:14.8]}
26... Nexc2 {[%clk 0:01:02.1]} 27. Nc3 {[%clk 0:01:09.7]} 27... Nxd4 {[%clk
0:00:59.6]} 28. a3 {[%clk 0:01:08.9]} 28... Ra8 {[%clk 0:00:47.5]} 29. axb4
{[%clk 0:01:07.2]} 29... Rxa7 {[%clk 0:00:46.3]} 30. b5 {[%clk 0:01:07.4]} 30...
Nxb5 {[%clk 0:00:35.2]} 31. Nxb5 {[%clk 0:01:05.5]} 31... cxb5 {[%clk
0:00:36.1]} 32. Rd1 {[%clk 0:01:05.9]} 32... Rd7 {[%clk 0:00:35.5]} 33. Rb1
{[%clk 0:01:05.9]} 33... d4 {[%clk 0:00:36.1]} 34. Rxb5 {[%clk 0:01:02.2]} 34...
d3 {[%clk 0:00:36.3]} 35. Rb1 {[%clk 0:01:01.5]} 35... d2 {[%clk 0:00:36.8]} 36.
Rd1 {[%clk 0:01:00.8]} 36... Kf7 {[%clk 0:00:37.4]} 37. Kf2 {[%clk 0:01:00.9]}
37... Ke6 {[%clk 0:00:38.1]} 38. Ke2 {[%clk 0:01:01.4]} 38... Ke5 {[%clk
0:00:38.8]} 39. g3 {[%clk 0:01:01.8]} 39... h5 {[%clk 0:00:38.4]} 40. Ke3 {[%clk
0:01:02.1]} 40... g5 {[%clk 0:00:37.6]} 41. Ke2 {[%clk 0:00:58.4]} 41... h4
{[%clk 0:00:37.3]} 42. gxh4 {[%clk 0:00:57.7]} 42... gxh4 {[%clk 0:00:38.2]} 43.
Ke3 {[%clk 0:00:56.3]} 43... Kf5 {[%clk 0:00:38.4]} 44. f4 {[%clk 0:00:52.9]}
44... b5 {[%clk 0:00:38.8]} 45. Kf3 {[%clk 0:00:51.4]} 45... b4 {[%clk 0:00:39]}
46. Ke3 {[%clk 0:00:51.2]} 46... b3 {[%clk 0:00:39.3]} 0-1

[Event "Early-Titled-Tuesday-Blitz-September-12-2023"]
[Site "Chess.com"]
[Date "2023.09.12"]
[Round "6"]
[White "Cambek64"]
[Black "Aleksandar-Topalov"]
[Result "1/2-1/2"]
[WhiteElo "2507"]
[BlackElo "2347"]
[TimeControl "180+1"]
[EndTime "9:05:38 PDT"]
[Termination "Game drawn by repetition"]

1. e4 {[%clk 0:03:00.9]} 1... e6 {[%clk 0:03:00]} 2. d3 {[%clk 0:02:57.9]} 2...
c5 {[%clk 0:02:58.3]} 3. g3 {[%clk 0:02:56.6]} 3... Nc6 {[%clk 0:02:58.3]} 4.
Bg2 {[%clk 0:02:56.7]} 4... g6 {[%clk 0:02:58.8]} 5. f4 {[%clk 0:02:56.8]} 5...
Bg7 {[%clk 0:02:58.4]} 6. Nf3 {[%clk 0:02:57.2]} 6... d6 {[%clk 0:02:58.7]} 7.
O-O {[%clk 0:02:57.6]} 7... Nge7 {[%clk 0:02:59]} 8. c4 {[%clk 0:02:57.6]} 8...
O-O {[%clk 0:02:58.5]} 9. Nc3 {[%clk 0:02:57.7]} 9... Rb8 {[%clk 0:02:58.8]} 10.
Be3 {[%clk 0:02:55.7]} 10... Nd4 {[%clk 0:02:53.6]} 11. g4 {[%clk 0:02:51.3]}
11... f5 {[%clk 0:02:49.8]} 12. g5 {[%clk 0:02:49.7]} 12... Nec6 {[%clk
0:02:45.5]} 13. h4 {[%clk 0:02:48.9]} 13... b5 {[%clk 0:02:42.9]} 14. Qd2 {[%clk
0:02:43.9]} 14... bxc4 {[%clk 0:02:42.2]} 15. dxc4 {[%clk 0:02:43.4]} 15... Qa5
{[%clk 0:02:30.5]} 16. Rf2 {[%clk 0:02:33.9]} 16... Qb4 {[%clk 0:02:25.8]} 17.
Rc1 {[%clk 0:02:22.7]} 17... Qxc4 {[%clk 0:02:10.8]} 18. exf5 {[%clk 0:02:14.7]}
18... Nxf5 {[%clk 0:02:05.8]} 19. h5 {[%clk 0:02:02.9]} 19... Ncd4 {[%clk
0:02:04.7]} 20. Bxd4 {[%clk 0:01:40.9]} 20... Bxd4 {[%clk 0:01:54.1]} 21. Nxd4
{[%clk 0:01:38.2]} 21... Qxd4 {[%clk 0:01:54.3]} 22. Ne4 {[%clk 0:01:31.4]}
22... gxh5 {[%clk 0:01:37.1]} 23. Nf6+ {[%clk 0:01:30]} 23... Rxf6 {[%clk
0:01:28.6]} 24. Qxd4 {[%clk 0:01:26.2]} 24... Nxd4 {[%clk 0:01:28.7]} 25. gxf6
{[%clk 0:01:26.2]} 25... Kf7 {[%clk 0:01:29.1]} 26. Be4 {[%clk 0:01:21]} 26...
Kxf6 {[%clk 0:01:24]} 27. Bxh7 {[%clk 0:01:20.1]} 27... Bb7 {[%clk 0:01:24.2]}
28. Rc3 {[%clk 0:01:13.1]} 28... Bd5 {[%clk 0:01:14]} 29. Ra3 {[%clk 0:01:02.9]}
29... Rb7 {[%clk 0:01:11.9]} 30. Bd3 {[%clk 0:00:56.1]} 30... Nf3+ {[%clk
0:01:00.4]} 31. Kf1 {[%clk 0:00:54.4]} 31... Rg7 {[%clk 0:00:58.1]} 32. Ke2
{[%clk 0:00:52.5]} 32... Nd4+ {[%clk 0:00:53.4]} 33. Kd2 {[%clk 0:00:53.1]}
33... h4 {[%clk 0:00:50.4]} 34. Ra6 {[%clk 0:00:51.2]} 34... c4 {[%clk
0:00:44.8]} 35. Bf1 {[%clk 0:00:47.9]} 35... Nf3+ {[%clk 0:00:42.3]} 36. Ke2
{[%clk 0:00:42.8]} 36... Nd4+ {[%clk 0:00:39.3]} 37. Kd2 {[%clk 0:00:42.2]}
37... Nf3+ {[%clk 0:00:38.1]} 38. Ke2 {[%clk 0:00:35.2]} 38... Nd4+ {[%clk
0:00:34.5]} 39. Kd2 {[%clk 0:00:28.6]} 1/2-1/2

[Event "Early-Titled-Tuesday-Blitz-September-12-2023"]
[Site "Chess.com"]
[Date "2023.09.12"]
[Round "6"]
[White "Kacparov"]
[Black "DumbKing75"]
[Result "1-0"]
[WhiteElo "2909"]
[BlackElo "2666"]
[TimeControl "180+1"]
[EndTime "9:05:44 PDT"]
[Termination "Kacparov won by checkmate"]

1. e4 {[%clk 0:03:00.9]} 1... c5 {[%clk 0:03:00.1]} 2. Nf3 {[%clk 0:03:01]} 2...
d6 {[%clk 0:03:00.2]} 3. d4 {[%clk 0:03:00.8]} 3... cxd4 {[%clk 0:03:01.1]} 4.
Nxd4 {[%clk 0:03:01.7]} 4... Nf6 {[%clk 0:03:01.6]} 5. f3 {[%clk 0:03:02.3]}
5... e5 {[%clk 0:02:59]} 6. Nb3 {[%clk 0:03:02.6]} 6... Be6 {[%clk 0:02:55.3]}
7. c4 {[%clk 0:03:02.5]} 7... a5 {[%clk 0:02:54.1]} 8. Be3 {[%clk 0:03:02.2]}
8... Ke7 {[%clk 0:02:51.6]} 9. Nc3 {[%clk 0:03:01.7]} 9... a4 {[%clk 0:02:25.8]}
10. Nd2 {[%clk 0:03:00.3]} 10... a3 {[%clk 0:02:25.2]} 11. b4 {[%clk 0:02:57.8]}
11... Nc6 {[%clk 0:01:47.8]} 12. Nd5+ {[%clk 0:02:57.2]} 12... Bxd5 {[%clk
0:01:45.1]} 13. cxd5 {[%clk 0:02:57.3]} 13... Nxb4 {[%clk 0:01:42.7]} 14. Qb3
{[%clk 0:02:55.7]} 14... Qa5 {[%clk 0:01:39.1]} 15. Rb1 {[%clk 0:02:52.4]} 15...
Nfxd5 {[%clk 0:01:14.9]} 16. exd5 {[%clk 0:02:49.5]} 16... Nxd5 {[%clk
0:01:15.8]} 17. Qxb7+ {[%clk 0:02:42.9]} 17... Kf6 {[%clk 0:01:15.2]} 18. Rb5
{[%clk 0:02:13.9]} 18... Qc3 {[%clk 0:01:12.2]} 19. Qxd5 {[%clk 0:02:13.7]}
19... Qxe3+ {[%clk 0:01:12.3]} 20. Be2 {[%clk 0:02:13.4]} 20... Rc8 {[%clk
0:01:08.1]} 21. Kd1 {[%clk 0:01:36.8]} 21... Be7 {[%clk 0:00:55]} 22. Rb3 {[%clk
0:01:32.8]} 22... Qa7 {[%clk 0:00:50.8]} 23. Bc4 {[%clk 0:01:26.6]} 23... Rhf8
{[%clk 0:00:46.3]} 24. Ke2 {[%clk 0:01:26.3]} 24... Kg6 {[%clk 0:00:43.8]} 25.
Bd3+ {[%clk 0:01:25.1]} 25... Kh6 {[%clk 0:00:33.4]} 26. Rb7 {[%clk 0:01:23.6]}
26... Qa8 {[%clk 0:00:33.8]} 27. Rhb1 {[%clk 0:01:15.9]} 27... Bg5 {[%clk
0:00:20.4]} 28. Ne4 {[%clk 0:01:09.7]} 28... Qa4 {[%clk 0:00:18.1]} 29. R7b4
{[%clk 0:00:58.5]} 29... Rc2+ {[%clk 0:00:17.8]} 30. Bxc2 {[%clk 0:00:55.3]}
30... Qxc2+ {[%clk 0:00:17.8]} 31. Kf1 {[%clk 0:00:55.1]} 31... Rc8 {[%clk
0:00:10.3]} 32. Qxd6+ {[%clk 0:00:45.4]} 32... g6 {[%clk 0:00:09.6]} 33. Nxg5
{[%clk 0:00:40.9]} 33... Kxg5 {[%clk 0:00:08.8]} 34. Qxe5+ {[%clk 0:00:39.5]}
34... f5 {[%clk 0:00:09.4]} 35. Qe7+ {[%clk 0:00:33.1]} 35... Kh6 {[%clk
0:00:09.5]} 36. Rh4# {[%clk 0:00:32.9]} 1-0